bitfinex/quotes_ETHUSD_20240828
["timestamp","ask_amount","ask_price","bid_price","bid_amount"]
[1724863501650,3.99465,2503.4,2503.1,0.04211191]
[1724863501834,3.99414,2503.7,2503.1,0.04211191]
[1724863502044,4.50800469,2503.8,2503.1,3.9949]
[1724863502353,3.99428,2503.6,2502.9,2.2675]
[1724863502502,3.99428,2503.6,2503.2,0.04181573]
[1724863502952,0.51406469,2503.7,2502.9,6.26275]
[1724863503104,0.51406469,2503.7,2503.3,0.04361367]
[1724863503629,0.51406469,2503.7,2502.7,3.99556]
[1724863503630,3.99467,2503.4,2502.7,3.99556]
[1724863503804,3.99452,2503.5,2502.9,3.99534]
[1724863504004,3.99458,2503.4,2502.7,7.99113]
[1724863504304,2.83186469,2503.7,2502.8,0.643966]
[1724863504305,3.99488,2503.2,2502.8,0.643966]
[1724863504504,4.50871469,2503.4,2502.7,3.99561]
[1724863504743,4.50871469,2503.4,2502.6,2.4441]
[1724863504744,2.3178,2503.7,2502.8,0.643971]
[1724863504911,2.3178,2503.7,2502.6,2.4441]
[1724863504912,3.99476,2503.3,2502.6,2.4441]
[1724863505249,3.99399,2503.8,2502.6,2.4441]
[1724863505250,6.47086,2504.1,2502.9,3.99534]
[1724863505447,6.47086,2504.1,2503.0,0.07989373]
[1724863505448,4.99385,2503.9,2503.0,0.07989373]
[1724863505607,3.99438,2503.6,2502.9,3.9953]
[1724863505916,3.99437,2503.6,2503.0,0.39953]
[1724863506330,4.99384,2503.9,2503.3,3.99461]
[1724863506537,4.99384,2503.9,2502.8,2.3031]
[1724863506538,3.99459,2503.4,2502.8,2.3031]
[1724863506707,3.99459,2503.4,2502.9,0.423983]
[1724863506906,1.0,2503.9,2503.4,3.99452]
[1724863507232,3.99435,2503.6,2503.0,3.99514]
[1724863507545,3.99418,2503.7,2502.9,3.300783]
[1724863507722,1.0,2503.9,2503.2,3.99478]
[1724863507917,1.0,2503.9,2503.3,3.99461]
[1724863508122,4.99381,2503.9,2503.2,3.99478]
[1724863508379,3.99407,2503.8,2503.2,3.99477]
[1724863508859,1.0,2503.9,2503.3,3.99468]
[1724863509007,1.0,2503.9,2503.7,3.99402]
[1724863509211,1.0,2503.9,2503.8,16.27426254]
[1724863509410,0.005,2504.1,2504.0,14.85763]
[1724863510008,0.005,2504.1,2504.0,10.86402]
[1724863510211,1e-05,2504.1,2504.0,16.51405889]
[1724863510449,1e-05,2504.1,2504.0,19.91665889]
[1724863510644,1e-05,2504.1,2504.0,17.46665889]
[1724863510849,1e-05,2504.1,2504.0,12.92304889]
[1724863511219,1e-05,2504.1,2504.0,4.53322889]
[1724863511420,1e-05,2504.1,2503.6,3.99418]
[1724863511622,1e-05,2504.1,2503.6,3.99413]
[1724863511822,1e-05,2504.1,2503.9,3.99366]
[1724863512024,1e-05,2504.1,2504.0,4.07347029]
[1724863512252,1e-05,2504.1,2504.0,3.99361]
[1724863512966,1e-05,2504.1,2503.7,3.99402]
[1724863513135,1e-05,2504.1,2503.6,3.99417]
[1724863513665,1e-05,2504.1,2503.2,3.99477]
[1724863513666,3.99377,2503.9,2503.2,3.99477]
[1724863513823,3.99377,2503.9,2503.2,1.032529]
[1724863514023,3.99377,2503.9,2503.2,0.629929]
[1724863514024,3.99409,2503.7,2503.2,0.629929]
[1724863514279,3.99446,2503.5,2503.0,2.3043]
[1724863514575,1e-05,2504.1,2503.7,3.99395]
[1724863514734,1e-05,2504.1,2503.4,3.99452]
[1724863514922,3.99438,2503.6,2503.1,0.2728283]
[1724863515121,3.99461,2503.4,2502.9,3.99526]
[1724863515565,3.99468,2503.4,2503.0,0.06010898]
[1724863515875,2.3429,2504.0,2502.3,3.9963]
[1724863516023,3.99406,2503.8,2503.1,0.05922615]
[1724863516224,3.99403,2503.8,2503.2,3.99478]
[1724863516535,3.99403,2503.8,2503.3,0.45841712]
[1724863516879,2.3429,2504.0,2503.3,0.05893912]
[1724863516880,6.33658,2504.0,2503.3,0.05893912]
[1724863517166,3.99352,2504.1,2503.5,3.99439]
[1724863517350,3.99383,2503.9,2503.3,0.05893912]
[1724863517555,3.99408,2503.7,2503.6,0.05850867]
[1724863517755,3.99408,2503.7,2503.1,3.99495]
[1724863517964,3.99408,2503.7,2503.6,0.05850867]
[1724863518165,3.99384,2503.9,2503.2,3.99479]
[1724863518166,7.98774,2503.9,2503.2,3.99479]
[1724863518363,1e-05,2504.1,2503.6,0.05850867]
[1724863518532,1e-05,2504.1,2503.7,3.99405]
[1724863518733,1e-05,2504.1,2503.7,3.994]
[1724863518934,1e-05,2504.1,2504.0,11.98083]
[1724863519170,1e-05,2504.1,2504.0,7.98722]
[1724863519338,1e-05,2504.1,2504.0,11.12499923]
[1724863519873,1e-05,2504.1,2504.0,8.04515489]
[1724863520230,1e-05,2504.1,2504.0,8.12500565]
[1724863520571,1e-05,2504.1,2504.0,13.61044122]
[1724863520730,1e-05,2504.1,2504.0,14.01304122]
[1724863520935,1e-05,2504.1,2504.0,17.08059046]
[1724863521151,1e-05,2504.1,2504.0,9.53698046]
[1724863521764,1e-05,2504.1,2504.0,0.05793489]
[1724863522304,3.99346,2504.1,2504.0,0.05793489]
[1724863522584,7.98691,2504.1,2504.0,0.05793489]
[1724863522788,1e-05,2504.1,2503.7,3.99401]
[1724863522991,1e-05,2504.1,2504.0,0.06437211]
[1724863523191,1e-05,2504.1,2503.5,3.99439]
[1724863523393,1e-05,2504.1,2504.0,0.06437211]
[1724863523551,1e-05,2504.1,2503.9,3.99376]
[1724863523750,1e-05,2504.1,2504.0,0.06437211]
[1724863523962,1e-05,2504.1,2504.0,4.05798211]
[1724863524418,1e-05,2504.1,2504.0,0.06437211]
[1724863524767,1e-05,2504.1,2503.5,3.99437]
[1724863525083,3.99346,2504.1,2503.3,3.99468]
[1724863525293,3.99346,2504.1,2503.6,0.06500963]
[1724863525490,3.99346,2504.1,2503.3,4.22353]
[1724863525491,1e-05,2504.1,2503.7,3.99405]
[1724863525805,1e-05,2504.1,2503.7,4.46629356]
[1724863526009,1e-05,2504.1,2503.7,0.06485023]
[1724863526358,1e-05,2504.1,2503.6,3.99424]
[1724863526674,1e-05,2504.1,2503.7,0.06458857]
[1724863527005,3.9938,2503.9,2503.0,3.99511]
[1724863527161,4.80444094,2504.1,2503.8,0.06442918]
[1724863527361,3.9935,2504.1,2503.4,3.99443]
[1724863527704,3.99393,2503.8,2503.2,3.99481]
[1724863527908,3.99389,2503.9,2503.5,0.06490738]
[1724863528058,2.72655,2504.0,2503.5,3.99427]
[1724863528059,2.3272,2504.0,2503.5,3.99427]
[1724863528403,1e-05,2504.1,2503.8,3.99387]
[1724863528607,1e-05,2504.1,2503.8,3.9938]
[1724863528782,1e-05,2504.1,2503.9,4.0579398]
[1724863529104,1e-05,2504.1,2503.9,0.0642698]
[1724863530003,0.65072394,2504.1,2503.8,3.99388]
[1724863530211,1e-05,2504.1,2504.0,0.06411044]
[1724863530379,1e-05,2504.1,2503.9,0.0642698]
[1724863530576,1e-05,2504.1,2504.0,0.06411044]
[1724863531332,1e-05,2504.1,2504.0,3.99361]
[1724863531467,1e-05,2504.1,2504.0,8.45069144]
[1724863532577,1e-05,2504.1,2504.0,12.44430144]
[1724863534476,1e-05,2504.1,2504.0,16.98791144]
[1724863534668,0.1228994,2504.3,2504.2,15.97316]
[1724863534669,9.4e-06,2504.3,2504.2,15.97316]
[1724863534866,9.4e-06,2504.3,2504.2,16.29236889]
[1724863535115,9.4e-06,2504.3,2504.2,15.74236889]
[1724863535616,9.4e-06,2504.3,2504.2,8.05037175]
[1724863535780,2.3464,2504.9,2504.2,8.05037175]
[1724863535964,2.2964094,2504.9,2504.3,3.993]
[1724863536168,3.99234,2504.8,2504.2,0.06379175]
[1724863536392,3.99234,2504.8,2504.0,0.801961]
[1724863536393,0.005,2505.1,2504.5,3.99267]
[1724863536598,3.99688,2505.1,2504.5,3.99271]
[1724863536838,3.99688,2505.1,2504.3,4.05668243]
[1724863536839,3.99234,2504.8,2504.6,0.06315453]
[1724863537041,3.99228,2504.9,2504.2,3.99325]
[1724863537243,3.99228,2504.9,2504.1,4.392667]
[1724863537408,0.005,2505.1,2504.2,0.06342194]
[1724863537744,3.99213,2505.0,2504.3,3.99301]
[1724863537946,3.99213,2505.0,2504.3,4.392311]
[1724863538095,3.99213,2505.0,2504.4,0.06328368]
[1724863538096,3.99243,2504.8,2504.4,0.06328368]
[1724863538294,0.005,2505.1,2504.4,0.06328368]
[1724863538295,3.99261,2504.7,2504.4,0.06328368]
[1724863538537,3.99218,2504.9,2504.4,0.06328368]
[1724863538838,0.005,2505.1,2504.5,4.05583438]
[1724863538839,7.98893,2505.1,2504.5,4.05583438]
[1724863539064,3.99696,2505.1,2504.5,4.05583438]
[1724863539203,0.005,2505.1,2504.6,3.9925]
[1724863539562,0.005,2505.1,2504.8,7.9845]
[1724863539836,0.005,2505.1,2504.9,0.06248731]
[1724863540023,0.005,2505.1,2505.0,3.99201]
[1724863540232,2.2744,2505.1,2504.9,0.06248731]
[1724863540537,2.2744,2505.1,2504.0,4.39615]
[1724863540538,2.2744,2505.1,2504.3,3.99304]
[1724863540696,3.99226,2504.9,2504.3,3.99304]
[1724863540899,3.9926,2504.7,2504.4,0.06328368]
[1724863541207,6.26221,2504.5,2503.9,3.99365]
[1724863541444,3.99313,2504.3,2503.7,3.99394]
[1724863541805,3.99345,2504.1,2503.3,3.99465]
[1724863542001,3.99345,2504.1,2503.3,0.629495]
[1724863542228,3.9937,2504.0,2503.3,4.39724]
[1724863542430,3.99345,2504.1,2503.4,0.06487738]
[1724863542642,3.99345,2504.1,2503.5,3.9944]
[1724863542906,3.99364,2504.0,2503.6,0.06455853]
[1724863543107,3.99392,2503.9,2503.6,0.06455853]
[1724863543307,3.99408,2503.7,2503.1,3.99493]
[1724863543612,3.99424,2503.6,2503.1,3.99493]
[1724863543799,3.99408,2503.7,2503.2,0.06519627]
[1724863544007,3.99408,2503.7,2503.0,4.624738]
[1724863544257,3.99425,2503.6,2503.1,0.06573463]
[1724863544441,3.99457,2503.4,2503.1,0.06573463]
[1724863544602,3.99488,2503.2,2502.5,3.99589]
[1724863544804,3.99516,2503.1,2502.3,3.99627]
[1724863545148,3.99425,2503.6,2502.4,0.06039367]
[1724863545149,7.992,2502.5,2502.4,0.06039367]
[1724863545300,3.99697,2501.9,2501.1,3.99818]
[1724863545501,3.99697,2501.9,2501.3,0.11489775]
[1724863545502,6.35297,2501.9,2501.3,0.11489775]
[1724863545745,3.99734,2501.7,2501.3,0.11489775]
[1724863545950,3.99734,2501.7,2501.4,0.08754851]
[1724863546151,3.99744,2501.6,2501.4,0.08754851]
[1724863546353,2.356,2501.9,2501.3,3.99778]
[1724863546653,3.9974,2501.7,2501.5,0.07699747]
[1724863546846,3.9976,2501.5,2501.4,0.06758279]
[1724863547055,3.9976,2501.5,2501.0,0.0582357]
[1724863547056,0.799505,2501.5,2501.0,0.0582357]
[1724863547256,3.9985,2501.0,2500.4,3.99925]
[1724863547465,2.3633,2501.4,2500.4,3.99925]
[1724863547466,6.36114,2501.4,2500.5,4.87901283]
[1724863547622,6.36114,2501.4,2500.6,0.0582357]
[1724863547623,3.99808,2501.2,2500.6,0.0582357]
[1724863547948,3.99808,2501.2,2500.4,3.99932]
[1724863548149,3.99872,2500.8,2500.7,0.06884068]
[1724863548313,3.99872,2500.8,2500.1,3.99973]
[1724863548511,3.99905,2500.6,2499.9,4.00005]
[1724863548853,3.99908,2500.6,2499.9,8.00008]
[1724863549060,3.99908,2500.6,2500.0,4.799988]
[1724863549209,3.99908,2500.6,2500.0,0.86248362]
[1724863549617,6.3624,2500.6,2500.0,0.06247562]
[1724863549844,3.99968,2500.2,2499.6,4.00061]
[1724863550163,3.99968,2500.2,2499.7,0.06321643]
[1724863550353,0.63624,2500.5,2499.7,0.06321643]
[1724863550354,4.00013,2500.0,2499.7,0.06321643]
[1724863550558,4.00013,2500.0,2498.8,4.00188]
[1724863550709,4.00013,2500.0,2499.8,0.06305653]
[1724863550918,7.9995,2500.2,2499.4,4.00085]
[1724863551116,3.99972,2500.2,2499.9,0.06289664]
[1724863551326,3.99972,2500.2,2499.5,4.00077]
[1724863551547,6.37944,2500.1,2500.0,0.06273677]
[1724863551743,6.37944,2500.1,2499.4,4.0008]
[1724863551744,2.3796,2500.1,2499.4,4.0008]
[1724863551986,10.37928,2500.1,2500.0,0.06273677]
[1724863552137,4.00057,2499.7,2499.0,4.00156]
[1724863552323,4.00141,2499.2,2498.6,4.00213]
[1724863552537,0.47854053,2499.7,2499.1,0.06417609]
[1724863552538,4.00088,2499.5,2499.1,0.06417609]
[1724863552746,4.00088,2499.5,2498.8,4.00181]
[1724863552983,4.00112,2499.3,2499.2,0.06401611]
[1724863553191,2.3796,2499.2,2498.2,0.630175]
[1724863553370,2.3796,2499.6,2498.8,4.0018]
[1724863553677,4.00114,2499.3,2498.9,0.06449608]
[1724863553824,4.00152,2499.1,2498.4,4.00247]
[1724863554031,4.00152,2499.1,2498.2,0.630175]
[1724863554032,4.00153,2499.1,2498.5,0.06513621]
[1724863554265,4.00153,2499.1,2497.7,4.0036]
[1724863554266,4.00224,2498.6,2497.9,4.00325]
[1724863554473,4.00179,2498.9,2498.0,0.059343]
[1724863554641,4.00179,2498.9,2497.2,4.00442]
[1724863554642,4.00273,2498.3,2497.6,4.00369]
[1724863554838,2.3522,2498.2,2497.6,4.00369]
[1724863555080,2.3522,2498.2,2497.7,0.06534265]
[1724863555262,4.00331,2498.0,2497.2,4.00439]
[1724863555444,4.00331,2498.0,2497.3,0.05938506]
[1724863555847,2.3522,2498.2,2497.6,4.00368]
[1724863556137,2.3522,2498.2,2497.4,4.00412]
[1724863556138,2.58742,2498.2,2497.7,0.06534265]
[1724863556365,4.00307,2498.1,2497.7,0.06534265]
[1724863556562,4.00351,2497.9,2497.2,4.00443]
[1724863556773,4.00307,2498.1,2497.8,0.04703661]
[1724863556973,6.35508,2498.2,2497.5,4.00387]
[1724863557175,4.0032,2498.0,2497.4,4.00403]
[1724863557374,4.0032,2498.0,2497.6,0.0543387]
[1724863557582,4.638649,2498.1,2497.5,0.05446976]
[1724863557782,4.638649,2498.1,2497.7,0.05420765]
[1724863558086,4.638649,2498.1,2497.8,0.05414302]
[1724863558087,4.7022849,2498.0,2497.8,0.05414302]
[1724863558253,0.6990849,2498.0,2496.8,4.00506]
[1724863558439,4.00382,2497.7,2497.0,4.00464]
[1724863558636,4.00382,2497.7,2497.1,0.05047212]
[1724863558637,4.00404,2497.5,2497.1,0.05047212]
[1724863558836,4.00404,2497.5,2496.8,8.01008]
[1724863558837,4.00382,2497.7,2496.8,4.005]
[1724863559046,4.00382,2497.7,2496.1,4.0061]
[1724863559047,4.00498,2496.9,2496.1,4.0061]
[1724863559295,4.00439,2497.3,2496.6,4.00543]
[1724863559588,2.2729,2497.6,2496.7,0.08010587]
[1724863559796,2.2729,2497.6,2496.8,4.00501]
[1724863559797,4.004,2497.5,2496.8,4.00501]
[1724863560180,4.00442,2497.3,2496.6,4.00538]
[1724863560364,2.267,2498.8,2498.3,4.0026]
[1724863560567,4.00138,2499.2,2498.3,4.00265]
[1724863560895,2.267,2499.3,2497.8,0.08004838]
[1724863561054,6.26827,2499.3,2498.6,4.00212]
[1724863561253,6.26816,2499.3,2498.4,4.00246]
[1724863561583,4.00132,2499.2,2498.4,4.00243]
[1724863561781,2.267,2499.3,2498.4,4.402673]
[1724863561979,4.00226,2498.6,2498.0,4.00316]
[1724863562296,2.267,2499.3,2498.5,4.00228]
[1724863562297,4.00145,2499.1,2498.5,4.00228]
[1724863562508,2.267,2499.3,2498.3,4.00265]
[1724863562509,8.00274,2499.2,2498.3,4.00265]
[1724863562700,4.00161,2499.0,2498.3,4.402865]
[1724863562854,4.00161,2499.0,2498.4,4.00245]
[1724863563196,4.00161,2499.0,2498.5,0.05854867]
[1724863563569,4.00161,2499.0,2498.3,4.402865]
[1724863563784,4.00178,2498.9,2498.6,0.05840463]
[1724863563988,4.00178,2498.9,2498.3,4.0026]
[1724863564297,4.00234,2498.6,2497.9,4.00323]
[1724863564468,4.00234,2498.6,2497.8,0.24854]
[1724863564469,4.0017,2499.0,2498.0,0.13933002]
[1724863564656,2.267,2499.3,2498.7,4.00197]
[1724863564861,2.267,2499.3,2498.0,2.56546094]
[1724863564862,4.00169,2499.0,2498.8,0.05811657]
[1724863565103,4.62813,2499.2,2498.1,0.33659453]
[1724863565258,2.267,2499.8,2498.9,0.05797255]
[1724863565607,4.00125,2499.3,2498.7,4.00193]
[1724863565757,4.00125,2499.3,2498.5,4.00232]
[1724863565758,0.37022664,2499.7,2499.2,4.00127]
[1724863566094,2.267,2499.8,2499.3,0.05739662]
[1724863566095,4.00109,2499.4,2499.3,0.05739662]
[1724863566296,4.00109,2499.4,2498.7,4.00197]
[1724863566480,4.00109,2499.4,2498.8,4.05992657]
[1724863566791,0.6339493,2499.7,2498.8,0.05811657]
[1724863566792,4.00116,2499.3,2498.8,0.05811657]
[1724863567004,4.00114,2499.3,2498.8,0.05811657]
[1724863567154,4.00114,2499.3,2498.5,4.0023]
[1724863567155,4.00137,2499.2,2498.5,4.0023]
[1724863567354,4.00148,2499.1,2498.9,0.05797255]
[1724863567569,4.00148,2499.1,2498.3,4.42858461]
[1724863567570,4.00177,2498.9,2498.3,4.42858461]
[1724863567769,4.00177,2498.9,2498.4,4.00255]
[1724863568060,4.00121,2499.3,2498.4,0.84310946]
[1724863568257,3.0,2499.6,2498.4,0.08003854]
[1724863568459,4.00048,2499.7,2499.1,4.0014]
[1724863568800,4.00023,2499.9,2499.1,4.00134]
[1724863568960,4.00023,2499.9,2499.3,4.00112]
[1724863568961,8.00051,2499.9,2499.3,4.00112]
[1724863569156,4.00023,2499.9,2499.3,4.00112]
[1724863569354,4.00058,2499.7,2499.1,4.0013]
[1724863569700,4.00004,2500.0,2498.9,4.00163]
[1724863569899,4.00089,2499.5,2498.7,4.00194]
[1724863570108,0.2267,2499.7,2498.5,4.00226]
[1724863570307,4.00189,2498.9,2498.4,0.440541]
[1724863570602,4.00187,2498.9,2498.3,4.00262]
[1724863570905,2.2784,2499.0,2498.0,4.0032]
[1724863570906,4.00197,2498.8,2498.0,4.0032]
[1724863571385,4.00236,2498.6,2498.0,4.0032]
[1724863571590,8.004,2498.8,2498.1,4.00292]
[1724863571901,8.00398,2498.8,2498.2,4.00287]
[1724863572075,4.00211,2498.7,2498.2,4.00287]
[1724863572271,6.28009,2499.0,2498.4,4.0024]
[1724863572472,6.28009,2499.0,2498.5,4.00237]
[1724863572703,10.28178,2499.0,2498.4,4.0024]
[1724863572864,6.28009,2499.0,2498.4,4.0024]
[1724863573708,4.00137,2499.2,2498.5,4.00236]
[1724863574038,3.0,2499.3,2497.8,0.4026]
[1724863574039,4.00187,2498.9,2497.8,0.4026]
[1724863574212,4.00187,2498.9,2498.3,4.0026]
[1724863574213,8.00373,2498.9,2498.3,4.0026]
[1724863574538,8.00373,2498.9,2498.2,4.00284]
[1724863574539,4.00202,2498.8,2498.2,4.00284]
[1724863575099,4.00186,2498.9,2498.2,4.00284]
[1724863575638,4.00208,2498.7,2498.2,4.00284]
[1724863575840,4.00208,2498.7,2498.2,8.00562]
[1724863576146,4.00204,2498.8,2498.2,8.00557]
[1724863576298,4.00186,2498.9,2498.2,4.00278]
[1724863576504,4.00152,2499.1,2498.3,0.4403075]
[1724863576847,4.00176,2498.9,2498.3,0.4403075]
[1724863577045,4.00176,2498.9,2498.3,4.00271]
[1724863577338,4.00147,2499.1,2498.0,4.0031]
[1724863577537,4.00201,2498.8,2498.2,4.00286]
[1724863578206,8.00407,2498.8,2498.3,0.05744941]
[1724863578405,4.00201,2498.8,2498.3,0.05744941]
[1724863578747,2.3977,2499.5,2498.4,0.05730534]
[1724863578942,4.00041,2499.8,2498.5,2.43]
[1724863579148,4.00074,2499.6,2499.0,4.00154]
[1724863579299,4.00074,2499.6,2499.0,4.0015]
[1724863579503,4.00074,2499.6,2499.1,0.05628906]
[1724863580116,4.00036,2499.8,2499.1,0.05628906]
[1724863580408,2.3427,2499.9,2498.6,0.25673383]
[1724863580409,4.00143,2499.2,2498.6,0.25673383]
[1724863580621,4.00123,2499.3,2498.4,4.40507]
[1724863580847,4.00144,2499.1,2498.4,4.40503]
[1724863581015,4.00119,2499.3,2498.6,4.00209]
[1724863581202,3.0,2500.1,2498.7,2.4834]
[1724863581549,4.00081,2499.5,2498.8,4.00182]
[1724863581749,4.00081,2499.5,2498.9,4.00166]
[1724863581750,0.400081,2499.4,2498.9,4.00166]
[1724863582047,8.00171,2499.5,2498.9,4.00166]
[1724863582219,4.00081,2499.5,2499.0,4.00158]
[1724863582421,4.00057,2499.7,2499.1,4.00133]
[1724863582821,8.00116,2499.7,2499.1,4.00133]
[1724863583024,4.00064,2499.6,2499.1,4.00133]
[1724863583249,4.00057,2499.7,2499.1,4.00133]
[1724863583462,2.3799,2499.8,2499.2,4.00118]
[1724863583608,2.3799,2499.8,2499.1,4.00133]
[1724863583808,4.00075,2499.6,2498.9,8.00333]
[1724863584024,4.00107,2499.4,2498.6,0.4026]
[1724863584228,4.00107,2499.4,2498.8,4.00182]
[1724863584539,4.00106,2499.4,2498.7,4.00196]
[1724863584854,4.00112,2499.3,2498.7,4.00196]
[1724863585014,2.3799,2499.8,2498.3,4.00261]
[1724863585015,4.00174,2499.0,2498.3,4.00261]
[1724863585409,4.00174,2499.0,2498.4,4.00245]
[1724863585625,4.00173,2499.0,2498.4,4.00245]
[1724863585909,4.0017,2499.0,2498.4,4.00245]
[1724863586110,2.2767,2499.1,2498.5,4.00231]
[1724863586318,4.0013,2499.2,2498.7,4.00206]
[1724863586837,4.00098,2499.4,2498.8,4.0019]
[1724863587036,2.2767,2499.5,2498.8,4.0018]
[1724863587410,2.2767,2499.5,2498.9,4.00169]
[1724863587749,2.50437,2499.5,2498.8,4.0018]
[1724863588046,2.50437,2499.5,2498.8,8.00361]
[1724863588252,2.2767,2499.5,2499.0,4.00154]
[1724863588450,2.2767,2499.5,2498.9,4.00169]
[1724863588812,2.4304,2500.0,2499.2,4.00115]
[1724863589040,2.4304,2500.0,2499.3,4.00102]
[1724863589247,2.4304,2500.0,2499.4,8.00181]
[1724863589445,2.4304,2500.4,2499.5,4.00068]
[1724863589877,2.4304,2500.4,2499.6,4.0006]
[1724863590043,3.47327,2500.4,2499.8,4.00029]
[1724863590371,2.4304,2500.4,2499.9,4.00014]
[1724863590581,2.4304,2500.4,2499.8,4.00021]
[1724863590880,2.731599,2500.7,2499.9,4.00002]
[1724863591088,6.31053,2501.3,2500.0,3.99991]
[1724863591390,3.99851,2501.0,2500.0,4.399852]
[1724863591531,2.73144356,2501.3,2499.5,1.25208554]
[1724863591532,6.31122,2500.8,2499.8,8.00043]
[1724863591731,3.9989,2500.7,2499.8,4.88367537]
[1724863591933,3.9989,2500.7,2499.8,4.00028]
[1724863591934,3.99896,2500.7,2499.8,4.00028]
[1724863592175,3.99896,2500.7,2499.7,4.00042]
[1724863592374,3.99921,2500.5,2499.8,4.00031]
[1724863592541,3.99921,2500.5,2499.6,4.00051]
[1724863592869,3.99953,2500.3,2499.6,4.00051]
[1724863593283,3.99927,2500.5,2499.7,5.39319847]
[1724863593574,0.23125,2500.7,2500.1,3.99975]
[1724863593887,2.3125,2500.8,2500.3,7.99893]
[1724863594039,3.99811,2501.2,2500.5,3.99918]
[1724863594388,0.41894356,2501.3,2501.2,3.99808]
[1724863594552,6.44244,2502.1,2501.4,3.99773]
[1724863594873,4.41588185,2501.9,2501.3,7.99561]
[1724863595171,3.9968,2502.0,2501.4,3.99774]
[1724863595372,3.99699,2501.9,2501.3,4.797341]
[1724863595581,3.99699,2501.9,2501.3,3.99778]
[1724863596073,8.48806664,2501.9,2501.3,3.99778]
[1724863596277,3.99673,2502.1,2501.5,3.9976]
[1724863596472,3.99673,2502.1,2501.5,7.99499]
[1724863596636,2.3088,2502.9,2501.6,6.48249]
[1724863596837,3.99577,2502.7,2502.1,3.99654]
[1724863597078,1.1738313,2502.7,2501.8,3.99701]
[1724863597265,3.99614,2502.5,2501.7,3.99717]
[1724863597448,3.99495,2503.2,2501.7,3.99717]
[1724863597449,3.99564,2502.8,2502.2,3.99643]
[1724863597655,3.99551,2502.9,2502.3,6.48141]
[1724863597875,3.99509,2503.1,2502.3,6.48141]
[1724863597876,3.99509,2503.1,2502.3,6.48129]
[1724863598034,3.9954,2502.9,2502.3,6.48129]
[1724863598360,3.99509,2503.1,2502.5,3.99599]
[1724863598750,3.99546,2502.9,2502.1,3.99653]
[1724863599073,3.99546,2502.9,2502.3,3.99628]
[1724863599475,4.394739,2503.0,2502.4,3.99612]
[1724863599692,0.40541972,2503.4,2502.4,3.99612]
[1724863599693,0.40541972,2503.4,2502.4,2.4851]
[1724863599841,6.30314,2503.6,2502.8,3.99542]
[1724863600039,3.99401,2503.8,2503.1,3.99492]
[1724863600324,3.99401,2503.8,2503.2,0.07988493]
[1724863600325,3.99394,2503.8,2503.2,0.07988493]
[1724863600444,3.99434,2503.6,2502.9,3.99523]
[1724863600639,6.3023,2504.1,2502.5,1.050718]
[1724863600640,3.99396,2503.8,2502.5,0.4026]
[1724863600855,3.99374,2504.0,2503.4,3.99446]
[1724863601095,3.99372,2504.0,2503.4,3.99446]
[1724863601256,5.023311,2504.0,2503.4,3.99446]
[1724863601980,9.017041,2504.0,2503.4,3.99446]
[1724863602185,3.99378,2503.9,2503.2,7.98953]
[1724863602365,3.99378,2503.9,2503.3,3.9946]
[1724863603180,3.99442,2503.5,2502.8,3.99541]
[1724863603381,3.99467,2503.4,2502.8,3.99541]
[1724863604083,3.99491,2503.2,2502.6,6.25734]
[1724863604300,3.99505,2503.1,2502.6,6.25734]
[1724863604645,3.99521,2503.0,2502.4,3.99602]
[1724863604845,3.9954,2502.9,2502.2,3.99641]
[1724863605044,3.99573,2502.7,2502.0,6.25839]
[1724863605332,3.99573,2502.7,2502.0,3.9967]
[1724863605592,3.99573,2502.7,2500.9,7.89743066]
[1724863605593,3.99715,2501.8,2501.2,3.99793]
[1724863605895,0.47122241,2502.6,2501.6,3.99743]
[1724863605896,3.99623,2502.4,2501.6,3.99743]
[1724863606108,3.99675,2502.1,2501.4,3.99767]
[1724863606264,3.99675,2502.1,2501.5,3.99758]
[1724863606442,3.99675,2502.1,2501.6,3.99743]
[1724863606742,3.99675,2502.1,2501.4,3.99762]
[1724863606946,3.99675,2502.1,2501.6,3.99739]
[1724863608951,3.99638,2502.3,2501.6,3.99731]
[1724863609292,2.4156,2502.5,2501.7,0.0799379]
[1724863609518,2.2781,2503.0,2501.6,2.4412]
[1724863609788,2.2781,2503.0,2501.8,3.99707]
[1724863609947,3.99604,2502.5,2501.9,3.99681]
[1724863610291,7.99198,2502.6,2502.0,3.99678]
[1724863610589,3.996,2502.5,2501.8,3.99697]
[1724863610795,3.99599,2502.6,2502.0,7.99354]
[1724863610945,3.0,2502.9,2501.8,0.643827]
[1724863610946,6.99547,2502.9,2501.8,0.643827]
[1724863611149,3.99578,2502.7,2502.1,3.99659]
[1724863611362,3.99585,2502.6,2502.1,3.99659]
[1724863612121,4.52338,2502.8,2501.5,3.99756]
[1724863612122,3.99644,2502.3,2501.7,3.99712]
[1724863612331,3.99644,2502.3,2501.5,3.9975]
[1724863612483,3.99644,2502.3,2501.6,3.99731]
[1724863612685,3.99658,2502.2,2501.6,3.99731]
[1724863612899,3.99665,2502.1,2501.6,3.99731]
[1724863613183,2.446,2502.4,2501.2,6.35615]
[1724863613184,3.99713,2501.8,2501.2,6.35615]
[1724863613381,3.99713,2501.8,2500.7,3.99882]
[1724863613382,2.446,2502.0,2500.7,0.4026]
[1724863613647,3.99802,2501.3,2500.5,3.99908]
[1724863613838,3.99737,2501.7,2501.0,3.99826]
[1724863614129,3.99777,2501.4,2500.8,3.99858]
[1724863614279,3.99777,2501.4,2500.9,0.079962]
[1724863614680,3.99763,2501.5,2500.9,4.078512]
[1724863615732,3.99763,2501.5,2501.0,3.99839]
[1724863615888,3.99763,2501.5,2501.0,3.99831]
[1724863616089,3.99763,2501.5,2500.8,3.99858]